[Event "SixDays Budapest March GM A 2025"]
[Site "Budapest"]
[Date "2025.03.27"]
[Round "6.5"]
[White "Jake Shanty"]
[Black "Zia, Tahsin Tajwar"]
[Result "0-1"]
[Annotator "RC"]
[ECO "D38"]
[WhiteElo "2336"]
[BlackElo "2327"]
[PlyCount "110"]
[EventDate "2025.03.23"]
[EventCountry "HUN"]
[SourceTitle "playchess.com"]
[Source "ChessBase"]
[SourceQuality "1"]
[TimeControl "5400+30"]

1. d4 {[%emt 0:00:03]} d5 {[%emt 0:05:33]} 2. c4 {[%emt 0:00:18]} e6 {[%emt 0:00:06]} 3. Nf3 {[%emt 0:00:18]} Nf6 {[%emt 0:00:25]} 4. Nc3 {[%emt 0:00:09]} Bb4 {[%emt 0:09:52]} 5. Bg5 {[%emt 0:03:40]} Nbd7 {[%emt 0:00:18]} 6. e3 {[%emt 0:08:39]} c5 {[%emt 0:00:21]} 7. Qb3 {[%emt 0:18:20]} Qa5 {[%emt 0:04:33]} 8. Bxf6 {[%emt 0:05:30]} Nxf6 {[%emt 0:01:02]} 9. a3 {[%emt 0:06:09]} Bxc3+ {[%emt 0:17:35]} 10. Qxc3 {[%emt 0:13:10]} Qxc3+ {[%emt 0:00:37]} 11. bxc3 {[%emt 0:00:07]} Bd7 {[%emt 0:08:45]} 12. Ne5 {[%emt 0:08:11]} Rc8 {[%emt 0:01:21]} 13. Rb1 {[%emt 0:05:59]} b6 {[%emt 0:01:01]} 14. cxd5 {[%emt 0:01:17]} Nxd5 {[%emt 0:07:24]} 15. Ba6 {[%emt 0:04:47]} Rc7 {[%emt 0:00:55]} 16. Kd2 {[%emt 0:04:05]} f6 {[%emt 0:02:27]} 17. Nxd7 {[%emt 0:04:54]} Kxd7 {[%emt 0:00:23]} 18. e4 {[%emt 0:01:30]} Ne7 {[%emt 0:03:14]} 19. Rhd1 {[%emt 0:00:54]} Rd8 {[%emt 0:02:08]} 20. Ke3 {[%emt 0:04:17]} Ke8 {[%emt 0:01:26]} 21. Rbc1 {[%emt 0:01:21]} Kf7 {[%emt 0:06:18]} 22. a4 {[%emt 0:00:45]} g5 {[%emt 0:09:36]} 23. f3 {[%emt 0:00:44]} Nc6 {[%emt 0:05:32]} 24. Bb5 {[%emt 0:01:48]} Ke7 {[%emt 0:04:56]} 25. Bxc6 {[%emt 0:00:40]} Rxc6 {[%emt 0:00:05]} 26. d5 {[%emt 0:00:09]} exd5 {[%emt 0:01:01]} 27. exd5 {[%emt 0:00:06]} Rc7 {[%emt 0:00:39]} 28. c4 {[%emt 0:00:51]} Kd6 {[%emt 0:00:01]} 29. Re1 {[%emt 0:00:59]} Re7+ {[%emt 0:02:49]} 30. Kd2 {[%emt 0:02:42]} Rde8 {[%emt 0:00:01]} 31. g4 {[%emt 0:02:25]} Re5 {[%emt 0:01:09]} 32. Rb1 {[%emt 0:00:55]} R8e7 {[%emt 0:01:49]} 33. Rxe5 {[%emt 0:00:28]} fxe5 {[%emt 0:00:17]} 34. a5 {[%emt 0:00:32]} bxa5 {[%emt 0:00:41]} 35. Ra1 {[%emt 0:00:20]} e4 {[%emt 0:00:25]} 36. Rxa5 {[%emt 0:00:46]} exf3 {[%emt 0:01:53]} 37. Ra6+ {[%emt 0:00:04]} Ke5 {[%emt 0:00:03]} 38. Ke3 {[%emt 0:00:06]} h5 {[%emt 0:01:11]} 39. gxh5 {[%emt 0:00:44]} g4 {[%emt 0:00:06]} 40. h6 {[%emt 0:00:52]} Kf5+ {[%emt 0:00:21]} 41. Re6 {[%emt 0:00:28]} Rb7 {[%emt 0:00:01]} 42. Re8 {[%emt 0:00:41]} Rb3+ {[%emt 0:00:35]} 43. Kf2 {[%emt 0:00:10]} Rb2+ {[%emt 0:00:04]} 44. Kg1 {[%emt 0:00:27]} Rg2+ {[%emt 0:00:48]} 45. Kh1 {[%emt 0:00:06]} Rd2 {[%emt 0:00:04]} 46. Kg1 {[%emt 0:00:11]} Rg2+ {[%emt 0:01:10]} 47. Kh1 {[%emt 0:00:05]} Re2 {[%emt 0:00:38]} 48. Re6 {[%emt 0:00:10]} Rb2 {[%emt 0:00:59]} 49. Re1 {[%emt 0:00:22]} Rb6 {[%emt 0:00:39]} 50. h7 {[%emt 0:01:50]} Rh6 {[%emt 0:00:01]} 51. Re7 {[%emt 0:01:14]} g3 {[%emt 0:00:14]} 52. Rf7+ {[%emt 0:00:16]} Ke4 {[%emt 0:00:22]} 53. Re7+ {[%emt 0:00:48]} Kf4 {[%emt 0:00:52]} 54. Kg1 {[%emt 0:00:28]} f2+ {[%emt 0:00:34]} 55. Kf1 {[%emt 0:00:21]} gxh2 {[%emt 0:00:27]} 0-1

[Event "SixDays Budapest March GM A 2025"]
[Site "Budapest"]
[Date "2025.03.28"]
[Round "7.1"]
[White "Zia, Tahsin Tajwar"]
[Black "Moldagali, Beksultan"]
[Result "0-1"]
[Annotator "RC"]
[ECO "A13"]
[WhiteElo "2327"]
[BlackElo "2398"]
[PlyCount "96"]
[EventDate "2025.03.23"]
[EventCountry "HUN"]
[SourceTitle "playchess.com"]
[Source "ChessBase"]
[SourceQuality "1"]
[TimeControl "5400+30"]

1. c4 {[%emt 0:00:17]} e6 {[%emt 0:03:09]} 2. g3 {[%emt 0:00:37]} d5 {[%emt 0:00:20]} 3. Bg2 {[%emt 0:00:15]} Nf6 {[%emt 0:01:34]} 4. Nf3 {[%emt 0:00:15]} Nc6 {[%emt 0:01:30]} 5. O-O {[%emt 0:02:10]} Bd6 {[%emt 0:03:12]} 6. b3 {[%emt 0:02:05]} O-O {[%emt 0:01:05]} 7. Bb2 {[%emt 0:02:17]} dxc4 {[%emt 0:00:49]} 8. bxc4 {[%emt 0:00:16]} e5 {[%emt 0:00:06]} 9. d3 {[%emt 0:09:48]} Re8 {[%emt 0:08:21]} 10. Nbd2 {[%emt 0:01:46]} a5 {[%emt 0:02:07]} 11. Rc1 {[%emt 0:21:07]} Bc5 {[%emt 0:11:22]} 12. Nb3 {[%emt 0:03:00]} Bf8 {[%emt 0:00:34]} 13. a4 {[%emt 0:04:10]} Bg4 {[%emt 0:08:08]} 14. h3 {[%emt 0:08:12]} Bd7 {[%emt 0:00:27]} 15. e4 {[%emt 0:05:09]} Ra6 {[%emt 0:05:44]} 16. Ra1 {[%emt 0:05:34]} Bc8 {[%emt 0:06:23]} 17. Ne1 {[%emt 0:06:02]} Nd7 {[%emt 0:00:53]} 18. f4 {[%emt 0:03:03]} Nc5 {[%emt 0:10:24]} 19. Nc1 {[%emt 0:00:20]} f6 {[%emt 0:09:31]} 20. Nf3 {[%emt 0:06:57]} Qd6 {[%emt 0:08:17]} 21. Nh4 {[%emt 0:08:44]} Rd8 {[%emt 0:02:45]} 22. Nf5 {[%emt 0:01:02]} Bxf5 {[%emt 0:00:42]} 23. exf5 {[%emt 0:01:20]} e4 {[%emt 0:00:20]} 24. Ra3 {[%emt 0:04:09]} Rb6 {[%emt 0:00:01]} 25. Ba1 {[%emt 0:00:29]} Ne7 {[%emt 0:00:39]} 26. Qg4 {[%emt 0:02:04]} Nxd3 {[%emt 0:02:39]} 27. Ra2 {[%emt 0:00:33]} Rb1 {[%emt 0:01:25]} 28. Nxd3 {[%emt 0:00:44]} Rxf1+ {[%emt 0:00:47]} 29. Bxf1 {[%emt 0:00:05]} exd3 {[%emt 0:00:05]} 30. Rd2 {[%emt 0:00:09]} Qc5+ {[%emt 0:00:16]} 31. Kh2 {[%emt 0:00:05]} Qe3 {[%emt 0:00:58]} 32. Bc3 {[%emt 0:01:03]} Nc6 {[%emt 0:01:30]} 33. h4 {[%emt 0:01:14]} Bb4 {[%emt 0:02:37]} 34. Bxf6 {[%emt 0:00:30]} Qxd2+ {[%emt 0:00:06]} 35. Kh3 {[%emt 0:00:31]} Rd7 {[%emt 0:00:30]} 36. h5 {[%emt 0:00:41]} Qe1 {[%emt 0:00:28]} 37. Bg2 {[%emt 0:00:11]} Kf8 {[%emt 0:04:24]} 38. Qg5 {[%emt 0:01:47]} gxf6 {[%emt 0:00:42]} 39. Qxf6+ {[%emt 0:00:01]} Rf7 {[%emt 0:00:01]} 40. Qh8+ {[%emt 0:00:16]} Ke7 {[%emt 0:00:06]} 41. Bd5 {[%emt 0:00:24]} d2 {[%emt 0:01:18]} 42. f6+ {[%emt 0:00:49]} Kd6 {[%emt 0:00:15]} 43. Bxf7 {[%emt 0:00:32]} Qh1+ {[%emt 0:00:08]} 44. Kg4 {[%emt 0:00:01]} d1=Q+ {[%emt 0:00:08]} 45. Kg5 {[%emt 0:00:04]} Kc5 {[%emt 0:00:24]} 46. Qxh7 {[%emt 0:00:22]} Qh3 {[%emt 0:00:19]} 47. Qe4 {[%emt 0:00:48]} Qd4 {[%emt 0:00:31]} 48. Qf3 {[%emt 0:00:25]} Bc3 {[%emt 0:00:11]} 0-1

[Event "SixDays Budapest March GM A 2025"]
[Site "Budapest"]
[Date "2025.03.28"]
[Round "7.2"]
[White "Berczes, David"]
[Black "Jake Shanty"]
[Result "1/2-1/2"]
[Annotator "RC"]
[ECO "A46"]
[WhiteElo "2408"]
[BlackElo "2336"]
[PlyCount "113"]
[EventDate "2025.03.23"]
[EventCountry "HUN"]
[SourceTitle "playchess.com"]
[Source "ChessBase"]
[SourceQuality "1"]
[TimeControl "5400+30"]

1. d4 {[%emt 0:18:29]} Nf6 {[%emt 0:00:16]} 2. Nf3 {[%emt 0:02:53]} e6 {[%emt 0:01:27]} 3. e3 {[%emt 0:05:35]} b6 {[%emt 0:05:11]} 4. Bd3 {[%emt 0:07:09]} Bb7 {[%emt 0:00:15]} 5. O-O {[%emt 0:00:06]} Be7 {[%emt 0:02:21]} 6. c4 {[%emt 0:01:41]} O-O {[%emt 0:06:09]} 7. Nc3 {[%emt 0:01:08]} d5 {[%emt 0:01:00]} 8. cxd5 {[%emt 0:02:25]} Nxd5 {[%emt 0:10:05]} 9. e4 {[%emt 0:13:30]} Nxc3 {[%emt 0:03:24]} 10. bxc3 {[%emt 0:00:04]} c5 {[%emt 0:00:17]} 11. Bb2 {[%emt 0:17:48]} Nd7 {[%emt 0:12:15]} 12. Qe2 {[%emt 0:07:23]} Rc8 {[%emt 0:04:13]} 13. Rfd1 {[%emt 0:03:08]} Qc7 {[%emt 0:10:38]} 14. Nd2 {[%emt 0:07:48]} Nf6 {[%emt 0:11:37]} 15. a4 {[%emt 0:04:40]} Rfd8 {[%emt 0:01:53]} 16. f3 {[%emt 0:02:18]} cxd4 {[%emt 0:06:29]} 17. cxd4 {[%emt 0:00:04]} Bb4 {[%emt 0:00:35]} 18. Rdc1 {[%emt 0:02:47]} Qe7 {[%emt 0:05:04]} 19. Nc4 {[%emt 0:00:19]} Rc7 {[%emt 0:01:17]} 20. Ne5 {[%emt 0:00:43]} Rxc1+ {[%emt 0:02:06]} 21. Rxc1 {[%emt 0:00:12]} Ba3 {[%emt 0:00:14]} 22. Rc4 {[%emt 0:00:46]} Bxb2 {[%emt 0:01:28]} 23. Qxb2 {[%emt 0:00:01]} Ne8 {[%emt 0:03:45]} 24. Qc3 {[%emt 0:00:59]} h5 {[%emt 0:03:31]} 25. Bf1 {[%emt 0:00:32]} Qd6 {[%emt 0:00:50]} 26. Nc6 {[%emt 0:00:30]} Bxc6 {[%emt 0:01:12]} 27. Rxc6 {[%emt 0:00:02]} Qe7 {[%emt 0:01:19]} 28. e5 {[%emt 0:00:45]} g6 {[%emt 0:01:18]} 29. f4 {[%emt 0:00:43]} Ng7 {[%emt 0:02:31]} 30. Bb5 {[%emt 0:00:20]} Nf5 {[%emt 0:01:20]} 31. Rc7 {[%emt 0:00:02]} Qf8 {[%emt 0:01:16]} 32. Bd7 {[%emt 0:01:07]} Ne7 {[%emt 0:00:36]} 33. Qa3 {[%emt 0:00:31]} Nd5 {[%emt 0:00:30]} 34. Qxf8+ {[%emt 0:00:04]} Kxf8 {[%emt 0:00:04]} 35. Rxa7 {[%emt 0:00:03]} Nxf4 {[%emt 0:00:19]} 36. Kf2 {[%emt 0:00:44]} Nd5 {[%emt 0:01:07]} 37. g3 {[%emt 0:01:09]} Ke7 {[%emt 0:00:30]} 38. Bc6+ {[%emt 0:00:05]} Kf8 {[%emt 0:00:05]} 39. Bd7 {[%emt 0:00:53]} Ne7 {[%emt 0:00:49]} 40. Rb7 {[%emt 0:00:27]} Nf5 {[%emt 0:00:35]} 41. d5 {[%emt 0:00:09]} exd5 {[%emt 0:00:25]} 42. Bxf5 {[%emt 0:00:31]} gxf5 {[%emt 0:00:02]} 43. Rxb6 {[%emt 0:00:04]} Ra8 {[%emt 0:00:44]} 44. Rb4 {[%emt 0:00:02]} Ke7 {[%emt 0:00:32]} 45. Ke3 {[%emt 0:00:02]} Ke6 {[%emt 0:00:17]} 46. Kd4 {[%emt 0:00:51]} Ra5 {[%emt 0:00:27]} 47. Rb6+ {[%emt 0:01:51]} Ke7 {[%emt 0:00:07]} 48. Rb7+ {[%emt 0:00:27]} Ke6 {[%emt 0:00:13]} 49. Rb4 {[%emt 0:00:37]} Ra8 {[%emt 0:00:58]} 50. Rb6+ {[%emt 0:00:30]} Ke7 {[%emt 0:00:02]} 51. Rh6 {[%emt 0:00:29]} Rxa4+ {[%emt 0:00:15]} 52. Kxd5 {[%emt 0:00:05]} h4 {[%emt 0:01:52]} 53. Rxh4 {[%emt 0:00:37]} Rxh4 {[%emt 0:00:14]} 54. gxh4 {[%emt 0:00:03]} f4 {[%emt 0:00:39]} 55. Ke4 {[%emt 0:00:05]} f6 {[%emt 0:00:06]} 56. exf6+ {[%emt 0:00:14]} Kxf6 {[%emt 0:00:02]} 57. Kxf4 {[%emt 0:00:06]} 1/2-1/2

[Event "SixDays Budapest March GM A 2025"]
[Site "Budapest"]
[Date "2025.03.28"]
[Round "7.3"]
[White "Aczel, Gergely"]
[Black "Uskov, Artem"]
[Result "1/2-1/2"]
[Annotator "TA"]
[ECO "E46"]
[WhiteElo "2487"]
[BlackElo "2461"]
[PlyCount "43"]
[EventDate "2025.03.23"]
[EventCountry "HUN"]
[SourceTitle "playchess.com"]
[Source "ChessBase"]
[SourceQuality "1"]
[TimeControl "5400+30"]

{[%evp 13,26,4,4,5,0,-8,0,-4,16,7,8,4,19,10,17]} 1. d4 {[%emt 0:00:03]} Nf6 {[%emt 0:14:49]} 2. c4 {[%emt 0:00:02]} e6 {[%emt 0:00:06]} 3. Nc3 {[%emt 0:00:05]} Bb4 {[%emt 0:00:04]} 4. e3 {[%emt 0:00:05]} O-O {[%emt 0:00:06]} 5. Bd2 {[%emt 0:00:05]} d5 {[%emt 0:00:09]} 6. Nf3 {[%emt 0:00:09]} b6 {[%emt 0:00:24]} 7. cxd5 {[%emt 0:00:22]} exd5 {[%emt 0:00:06] The position is equal.} 8. Rc1 {[%emt 0:00:05] E51: Nimzo-Indian: Rubinstein: 4...0-0 5 Nf3 d5.} Bb7 {[%emt 0:00:13]} 9. Bd3 {[%emt 0:00:14]} Be7 {[%emt 0:00:06] 9...Re8 is becoming the main line.} 10. O-O {[%emt 0:00:20]} c5 {[%emt 0:00:02]} 11. dxc5 {[%emt 0:00:54]} bxc5 {[%emt 0:00:10]} 12. Re1 {[%emt 0:00:10]} Re8 {[%emt 0:00:24]} 13. Qb3 {[%emt 0:09:40]} Qb6 {[%emt 0:00:12] Not much happened in this game.   Weighted Error Value: White=0.02 (flawless) /Black=0.10 (very precise)   OK:         	White=4     	Black=2} {Predecessor:} 14. e4 $146 Qxb3 15. axb3 dxe4 16. Nxe4 Nxe4 17. Bxe4 Bxe4 18. Rxe4 Nc6 19. Be3 Rab8 20. Bxc5 Bxc5 21. Rxe8+ Rxe8 22. Rxc5 {½-½ Sargsyan,S (2661)-Ganguly,S (2608) Biel HTO 55th 2022 (6)} 1/2-1/2

[Event "SixDays Budapest March GM A 2025"]
[Site "Budapest"]
[Date "2025.03.28"]
[Round "7.4"]
[White "Borgaonkar Akshay"]
[Black "Pap, Misa"]
[Result "1/2-1/2"]
[Annotator "TA"]
[ECO "C42"]
[WhiteElo "2418"]
[BlackElo "2457"]
[PlyCount "38"]
[EventDate "2025.03.23"]
[EventCountry "HUN"]
[SourceTitle "playchess.com"]
[Source "ChessBase"]
[SourceQuality "1"]
[TimeControl "5400+30"]

{[%evp 17,22,43,34,37,25,44,29]} 1. e4 {[%emt 0:00:04]} e5 {[%emt 0:01:09]} 2. Nf3 {[%emt 0:00:05]} Nf6 {[%emt 0:00:35][%cal Bg8f6,Bf6e4,Be4c3][%mdl 32]} 3. Nxe5 {[%emt 0:00:13]} d6 {[%emt 0:00:06]} 4. Nf3 {[%emt 0:00:11]} Nxe4 {[%emt 0:00:06]} 5. d4 {[%emt 0:00:17]} d5 {[%emt 0:00:04]} 6. Bd3 {[%emt 0:00:05]} Bd6 {[%emt 0:00:03]} 7. O-O {[%emt 0:01:55]} O-O {[%emt 0:00:40]} 8. c4 {[%emt 0:01:44]} c6 {[%emt 0:00:04]} 9. Nc3 {[%emt 0:01:23]} Nxc3 {[%emt 0:00:06]} 10. bxc3 {[%emt 0:00:09] C42: Petroff Defence: 3 Nxe5 and unusual White 3rd moves.} dxc4 {[%emt 0:00:03]} 11. Bxc4 {[%emt 0:00:38]} Bf5 {OK:         	---       	Black=2} {Predecessor:} 12. Bg5 $146 Qa5 13. Nh4 Be6 14. Bxe6 Qxg5 15. Nf3 Qa5 16. Bh3 Qxc3 17. Rb1 b6 18. Qe2 Qa5 19. d5 cxd5 {0-1 Vachier Lagrave,M (2735)-Erigaisi,A (2797) London WR Masters 2024 (4.3)} 1/2-1/2

[Event "SixDays Budapest March GM A 2025"]
[Site "Budapest"]
[Date "2025.03.28"]
[Round "7.5"]
[White "Ostrovskiy, Aleksandr"]
[Black "Rohrer, Christophe"]
[Result "0-1"]
[Annotator "RC"]
[ECO "C71"]
[WhiteElo "2394"]
[BlackElo "2266"]
[PlyCount "80"]
[EventDate "2025.03.23"]
[EventCountry "HUN"]
[SourceTitle "playchess.com"]
[Source "ChessBase"]
[SourceQuality "1"]
[TimeControl "5400+30"]

1. e4 {[%emt 0:05:41]} e5 {[%emt 0:00:09]} 2. Nf3 {[%emt 0:00:30]} Nc6 {[%emt 0:00:06]} 3. Bb5 {[%emt 0:00:06]} a6 {[%emt 0:00:12]} 4. Ba4 {[%emt 0:00:06]} d6 {[%emt 0:00:18]} 5. c4 {[%emt 0:01:32]} Bg4 {[%emt 0:01:05]} 6. h3 {[%emt 0:02:45]} Bxf3 {[%emt 0:00:56]} 7. Qxf3 {[%emt 0:00:30]} Nf6 {[%emt 0:00:17]} 8. d3 {[%emt 0:02:40]} Be7 {[%emt 0:00:56]} 9. O-O {[%emt 0:09:12]} O-O {[%emt 0:00:23]} 10. Be3 {[%emt 0:00:04]} Nd7 {[%emt 0:05:13]} 11. Qg4 {[%emt 0:02:47]} Re8 {[%emt 0:05:27]} 12. Nc3 {[%emt 0:03:13]} Nf8 {[%emt 0:02:46]} 13. f4 {[%emt 0:06:42]} exf4 {[%emt 0:11:55]} 14. Qxf4 {[%emt 0:02:10]} Bf6 {[%emt 0:02:48]} 15. Nd5 {[%emt 0:04:06]} Re6 {[%emt 0:04:13]} 16. Rad1 {[%emt 0:34:34]} Ne5 {[%emt 0:04:44]} 17. Bb3 {[%emt 0:09:50]} Nfg6 {[%emt 0:10:04]} 18. Qf5 {[%emt 0:03:37]} Nd7 {[%emt 0:12:22]} 19. d4 {[%emt 0:02:11]} c6 {[%emt 0:01:01]} 20. Nc3 {[%emt 0:02:46]} c5 {[%emt 0:07:43]} 21. dxc5 {[%emt 0:01:16]} Re5 {[%emt 0:00:36]} 22. Qf3 {[%emt 0:02:11]} Nxc5 {[%emt 0:03:00]} 23. Bc2 {[%emt 0:01:19]} Qf8 {[%emt 0:03:15]} 24. Nd5 {[%emt 0:00:44]} Bd8 {[%emt 0:00:54]} 25. b4 {[%emt 0:00:46]} Ne6 {[%emt 0:00:43]} 26. Qg4 {[%emt 0:01:26]} Bg5 {[%emt 0:04:15]} 27. Rf5 {[%emt 0:00:34]} Bxe3+ {[%emt 0:01:29]} 28. Nxe3 {[%emt 0:00:02]} a5 {[%emt 0:00:36]} 29. a3 {[%emt 0:00:32]} axb4 {[%emt 0:00:40]} 30. axb4 {[%emt 0:00:01]} Ra3 {[%emt 0:03:05]} 31. Nd5 {[%emt 0:00:54]} Ra2 {[%emt 0:00:26]} 32. Bd3 {[%emt 0:01:00]} Nd4 {[%emt 0:01:16]} 33. Rf2 {[%emt 0:00:34]} Rxf2 {[%emt 0:01:03]} 34. Kxf2 {[%emt 0:00:02]} Qd8 {[%emt 0:01:12]} 35. Qg3 {[%emt 0:00:42]} h5 {[%emt 0:02:00]} 36. Re1 {[%emt 0:00:43]} h4 {[%emt 0:01:08]} 37. Qe3 {[%emt 0:00:23]} Nf5 {[%emt 0:00:39]} 38. Qb6 {[%emt 0:00:39]} Qg5 {[%emt 0:01:13]} 39. Re2 {[%emt 0:00:25]} Qg3+ {[%emt 0:00:35]} 40. Kf1 {[%emt 0:00:44]} Qxd3 {[%emt 0:00:16]} 0-1

[Event "SixDays Budapest March GM A 2025"]
[Site "Budapest"]
[Date "2025.03.28"]
[Round "8.1"]
[White "Moldagali, Beksultan"]
[Black "Rohrer, Christophe"]
[Result "1/2-1/2"]
[Annotator "RC"]
[ECO "C71"]
[WhiteElo "2398"]
[BlackElo "2266"]
[PlyCount "160"]
[EventDate "2025.03.23"]
[EventCountry "HUN"]
[SourceTitle "playchess.com"]
[Source "ChessBase"]
[SourceQuality "1"]
[TimeControl "5400+30"]

1. e4 {[%emt 0:00:27]} e5 {[%emt 0:00:10]} 2. Nf3 {[%emt 0:00:07]} Nc6 {[%emt 0:00:09]} 3. Bb5 {[%emt 0:00:08]} a6 {[%emt 0:00:15]} 4. Ba4 {[%emt 0:00:05]} d6 {[%emt 0:00:16]} 5. Nc3 {[%emt 0:01:43]} Bd7 {[%emt 0:01:37]} 6. Bxc6 {[%emt 0:00:31]} Bxc6 {[%emt 0:00:25]} 7. d4 {[%emt 0:00:16]} f6 {[%emt 0:01:42]} 8. O-O {[%emt 0:03:32]} Ne7 {[%emt 0:04:07]} 9. Nh4 {[%emt 0:04:27]} g6 {[%emt 0:10:04]} 10. f4 {[%emt 0:04:35]} exf4 {[%emt 0:03:11]} 11. d5 {[%emt 0:06:31]} Bd7 {[%emt 0:00:16]} 12. Bxf4 {[%emt 0:00:33]} Bg7 {[%emt 0:02:29]} 13. Nf3 {[%emt 0:02:19]} O-O {[%emt 0:01:12]} 14. Qd2 {[%emt 0:03:03]} Rf7 {[%emt 0:06:50]} 15. a4 {[%emt 0:06:33]} Kh8 {[%emt 0:05:07]} 16. a5 {[%emt 0:01:48]} Qf8 {[%emt 0:00:57]} 17. Nd4 {[%emt 0:03:17]} Qc8 {[%emt 0:07:34]} 18. Rae1 {[%emt 0:01:57]} Ng8 {[%emt 0:03:06]} 19. Nf3 {[%emt 0:03:29]} Qf8 {[%emt 0:01:53]} 20. Na2 {[%emt 0:10:44]} Re8 {[%emt 0:06:21]} 21. Qb4 {[%emt 0:00:13]} Bc8 {[%emt 0:01:01]} 22. Nc1 {[%emt 0:01:49]} Nh6 {[%emt 0:01:33]} 23. Nd3 {[%emt 0:01:21]} Ng4 {[%emt 0:02:31]} 24. c4 {[%emt 0:06:29]} Ne5 {[%emt 0:02:09]} 25. Nfxe5 {[%emt 0:06:23]} fxe5 {[%emt 0:04:24]} 26. Be3 {[%emt 0:02:46]} Rxf1+ {[%emt 0:03:26]} 27. Rxf1 {[%emt 0:00:02]} Qe7 {[%emt 0:00:10]} 28. Qd2 {[%emt 0:05:49]} Rf8 {[%emt 0:01:35]} 29. Rxf8+ {[%emt 0:01:05]} Qxf8 {[%emt 0:00:58]} 30. Ba7 {[%emt 0:03:19]} Bd7 {[%emt 0:02:51]} 31. Qb4 {[%emt 0:00:43]} Qc8 {[%emt 0:02:56]} 32. Be3 {[%emt 0:00:55]} Kg8 {[%emt 0:01:49]} 33. Qc3 {[%emt 0:02:35]} Qd8 {[%emt 0:01:44]} 34. Qe1 {[%emt 0:00:45]} Bf6 {[%emt 0:01:20]} 35. Nb4 {[%emt 0:01:19]} Bh4 {[%emt 0:02:35]} 36. Qd2 {[%emt 0:00:18]} Bf6 {[%emt 0:01:27]} 37. Na2 {[%emt 0:00:06]} Bg7 {[%emt 0:01:45]} 38. b4 {[%emt 0:02:10]} Qh4 {[%emt 0:05:16]} 39. Nc3 {[%emt 0:00:14]} Qd8 {[%emt 0:01:27]} 40. Qf2 {[%emt 0:00:20]} Qf8 {[%emt 0:00:51]} 41. Bg5 {[%emt 0:01:31]} Qxf2+ {[%emt 0:01:57]} 42. Kxf2 {[%emt 0:00:02]} Kf7 {[%emt 0:00:46]} 43. Bd8 {[%emt 0:00:32]} c6 {[%emt 0:00:04]} 44. Bc7 {[%emt 0:01:27]} Bf8 {[%emt 0:02:10]} 45. Ke3 {[%emt 0:02:14]} Ke8 {[%emt 0:00:50]} 46. Kd3 {[%emt 0:00:56]} Bg4 {[%emt 0:01:51]} 47. dxc6 {[%emt 0:01:48]} bxc6 {[%emt 0:00:05]} 48. b5 {[%emt 0:00:07]} cxb5 {[%emt 0:02:37]} 49. cxb5 {[%emt 0:00:01]} Bc8 {[%emt 0:00:19]} 50. Kc4 {[%emt 0:03:28]} Kd7 {[%emt 0:00:31]} 51. Nd5 {[%emt 0:01:27]} Bb7 {[%emt 0:00:51]} 52. Bb6 {[%emt 0:00:01]} Bh6 {[%emt 0:01:19]} 53. Nf6+ {[%emt 0:04:47]} Ke6 {[%emt 0:00:26]} 54. Nd5 {[%emt 0:00:39]} Kd7 {[%emt 0:00:08]} 55. bxa6 {[%emt 0:00:57]} Bxa6+ {[%emt 0:00:03]} 56. Kc3 {[%emt 0:00:09]} Bb7 {[%emt 0:03:01]} 57. Kd3 {[%emt 0:00:08]} Ba6+ {[%emt 0:00:04]} 58. Kc2 {[%emt 0:00:01]} Bb7 {[%emt 0:00:08]} 59. Kd1 {[%emt 0:00:19]} Bg5 {[%emt 0:00:56]} 60. Ke2 {[%emt 0:00:08]} Bd8 {[%emt 0:00:21]} 61. Nc3 {[%emt 0:01:46]} Bxb6 {[%emt 0:00:12]} 62. axb6 {[%emt 0:00:02]} Kc6 {[%emt 0:00:32]} 63. Nd5 {[%emt 0:00:02]} Kc5 {[%emt 0:00:53]} 64. Nf6 {[%emt 0:00:02]} Kxb6 {[%emt 0:00:22]} 65. Ke3 {[%emt 0:00:09]} h5 {[%emt 0:00:50]} 66. Nd7+ {[%emt 0:00:29]} Kc6 {[%emt 0:00:51]} 67. Nf8 {[%emt 0:00:02]} d5 {[%emt 0:00:24]} 68. Nxg6 {[%emt 0:00:15]} d4+ {[%emt 0:00:24]} 69. Kd3 {[%emt 0:00:05]} Kd6 {[%emt 0:00:05]} 70. Nh4 {[%emt 0:00:43]} Ba6+ {[%emt 0:00:27]} 71. Kd2 {[%emt 0:00:02]} Ke6 {[%emt 0:00:59]} 72. Nf5 {[%emt 0:00:22]} Kf6 {[%emt 0:00:07]} 73. h4 {[%emt 0:00:21]} Bf1 {[%emt 0:00:56]} 74. g3 {[%emt 0:00:29]} Ba6 {[%emt 0:00:38]} 75. Nd6 {[%emt 0:00:38]} Ke7 {[%emt 0:00:13]} 76. Nf5+ {[%emt 0:00:11]} Kf6 {[%emt 0:00:05]} 77. Kc2 {[%emt 0:00:18]} Bb5 {[%emt 0:00:32]} 78. Nd6 {[%emt 0:00:10]} Bc6 {[%emt 0:00:13]} 79. Kd3 {[%emt 0:00:05]} Ke6 {[%emt 0:00:11]} 80. Nf5 {[%emt 0:00:11]} Kf6 {[%emt 0:00:06]} 1/2-1/2